[Event "SRB-ch Semifinal 2022"]
[Site "Paracin"]
[Date "2022.03.18"]
[Round "3.8"]
[White "Gajcin, Marina"]
[Black "Djordjevic, Vuk"]
[Result "1/2-1/2"]
[ECO "C02"]
[WhiteElo "2254"]
[BlackElo "2382"]
[Annotator "ChessBase"]
[PlyCount "81"]
[EventDate "2022.03.17"]
[EventType "swiss"]
[EventCountry "SRB"]
[SourceTitle "playchess.com"]
[Source "ChessBase"]
[SourceQuality "1"]
[TimeControl "40/5400+30:1800+30"]

1. e4 {[%emt 0:00:03]} e6 {[%emt 0:02:30]} 2. d4 {[%emt 0:00:10]} d5 {[%emt 0:00:10]} 3. e5 {[%emt 0:00:19]} c5 {[%emt 0:00:15]} 4. c3 {[%emt 0:00:09]} Nc6 {[%emt 0:00:16]} 5. Nf3 {[%emt 0:00:22]} Qb6 {[%emt 0:00:26]} 6. a3 {[%emt 1:32:27]} Nh6 {[%emt 1:29:53]} 7. b4 {[%emt 0:00:30]} cxd4 {[%emt 0:00:00]} 8. cxd4 {[%emt 0:00:00]} Nf5 {[%emt 0:00:00]} 9. Bb2 {[%emt 0:00:00]} Bd7 {[%emt 0:00:00]} 10. g4 {[%emt 0:00:00]} Nfe7 {[%emt 0:00:00]} 11. Nc3 {[%emt 0:00:00]} Na5 {[%emt 0:00:00]} 12. Qc2 {[%emt 0:00:00]} Nc4 {[%emt 0:00:00]} 13. Bxc4 {[%emt 0:00:00]} dxc4 {[%emt 0:00:00]} 14. Nd2 {[%emt 0:03:30]} Qc6 {[%emt 0:00:00]} 15. Nce4 {[%emt 0:00:00]} c3 {[%emt 0:04:30]} 16. Qxc3 {[%emt 0:00:00]} Nd5 {[%emt 0:00:30]} 17. Qxc6 {[%emt 0:00:00]} Bxc6 {[%emt 0:00:00]} 18. f3 {[%emt 0:00:00]} Nf4 {[%emt 0:00:00]} 19. Bc3 {[%emt 0:00:00]} Be7 {[%emt 0:00:00]} 20. Kf2 {[%emt 0:00:00]} h5 {[%emt 0:00:00]} 21. g5 {[%emt 0:00:00]} Nh3+ {[%emt 0:00:00]} 22. Ke3 {[%emt 0:00:00]} Nxg5 {[%emt 0:00:00]} 23. Rhg1 {[%emt 0:00:00]} Nxe4 {[%emt 0:00:00]} 24. Nxe4 {[%emt 0:00:00]} g6 {[%emt 0:00:00]} 25. a4 {[%emt 0:00:00]} O-O {[%emt 0:00:00]} 26. b5 {[%emt 0:00:00]} Bd5 {[%emt 0:00:00]} 27. Rgc1 {[%emt 0:00:00]} f5 {[%emt 0:01:19]} 28. exf6 {[%emt 0:00:00]} Bxf6 {[%emt 0:00:08]} 29. Bb4 {[%emt 0:01:37]} Rf7 {[%emt 0:00:04]} 30. Nxf6+ {[%emt 0:01:20]} Rxf6 {[%emt 0:00:04]} 31. f4 {[%emt 0:00:17]} Rf7 {[%emt 0:02:41]} 32. Ra3 {[%emt 0:03:58]} a6 {[%emt 0:01:30]} 33. Rac3 {[%emt 0:00:58]} axb5 {[%emt 0:00:35]} 34. Rc8+ {[%emt 0:00:22]} Rxc8 {[%emt 0:00:05]} 35. Rxc8+ {[%emt 0:00:01]} Kg7 {[%emt 0:00:11]} 36. axb5 {[%emt 0:01:26]} g5 {[%emt 0:02:31]} 37. Bd6 {[%emt 0:00:56]} gxf4+ {[%emt 0:00:05]} 38. Bxf4 {[%emt 0:00:09]} h4 {[%emt 0:00:30]} 39. Be5+ {[%emt 0:00:20]} Kh7 {[%emt 0:00:28]} 40. Rh8+ {[%emt 0:00:38]} Kg6 {[%emt 0:00:04]} 41. Bf4 {[%emt 0:15:26]} 1/2-1/2

[Event "SRB-ch Semifinal 2022"]
[Site "Paracin"]
[Date "2022.03.18"]
[Round "3.9"]
[White "Arsovic, Zoran"]
[Black "Martic, Ivan"]
[Result "1-0"]
[ECO "A29"]
[WhiteElo "2360"]
[BlackElo "2287"]
[Annotator "ChessBase"]
[PlyCount "79"]
[EventDate "2022.03.17"]
[EventType "swiss"]
[EventCountry "SRB"]
[SourceTitle "playchess.com"]
[Source "ChessBase"]
[SourceQuality "1"]
[TimeControl "40/5400+30:1800+30"]

1. Nf3 {[%emt 0:01:43]} d5 {[%emt 0:01:22]} 2. g3 {[%emt 0:00:22]} Nc6 {[%emt 0:00:13]} 3. Bg2 {[%emt 0:05:37]} e5 {[%emt 0:00:26]} 4. d3 {[%emt 0:00:16]} Nf6 {[%emt 0:06:29]} 5. O-O {[%emt 0:00:34]} Be7 {[%emt 0:00:21]} 6. c4 {[%emt 0:02:23]} O-O {[%emt 0:03:04]} 7. cxd5 {[%emt 0:02:55]} Nxd5 {[%emt 0:00:06]} 8. Nc3 {[%emt 0:04:33]} Nb6 {[%emt 0:01:28]} 9. Be3 {[%emt 0:02:18]} Be6 {[%emt 0:02:16]} 10. a3 {[%emt 0:01:51]} f6 {[%emt 0:04:19]} 11. Rc1 {[%emt 0:13:20]} Nd4 {[%emt 0:11:30]} 12. Ne4 {[%emt 0:08:40]} Qd7 {[%emt 0:04:12]} 13. Nfd2 {[%emt 0:10:23]} Na4 {[%emt 0:06:46]} 14. Bxd4 {[%emt 0:18:17]} exd4 {[%emt 0:00:53]} 15. Nf3 {[%emt 0:05:06]} Rfd8 {[%emt 0:23:18]} 16. Qc2 {[%emt 0:02:26]} Rac8 {[%emt 0:00:43]} 17. b3 {[%emt 0:01:03]} Nb6 {[%emt 0:00:39]} 18. b4 {[%emt 0:00:31]} c5 {[%emt 0:06:22]} 19. Nxc5 {[%emt 0:04:57]} Bxc5 {[%emt 0:00:09]} 20. bxc5 {[%emt 0:00:06]} Na4 {[%emt 0:01:03]} 21. Qd2 {[%emt 0:03:08]} Nxc5 {[%emt 0:00:41]} 22. Qb4 {[%emt 0:01:10]} b6 {[%emt 0:00:35]} 23. h4 {[%emt 0:06:11]} Kh8 {[%emt 0:10:10]} 24. Rfe1 {[%emt 0:01:20]} Rb8 {[%emt 0:02:50]} 25. Rb1 {[%emt 0:01:38]} Ba2 {[%emt 0:05:17]} 26. Rb2 {[%emt 0:00:47]} Bf7 {[%emt 0:00:33]} 27. Kh2 {[%emt 0:00:31]} Be6 {[%emt 0:02:43]} 28. Qd2 {[%emt 0:00:40]} Qd6 {[%emt 0:03:31]} 29. Rb4 {[%emt 0:00:27]} Bg8 {[%emt 0:02:16]} 30. Rxd4 {[%emt 0:00:54]} Qe7 {[%emt 0:00:34]} 31. Rxd8 {[%emt 0:00:13]} Rxd8 {[%emt 0:00:03]} 32. Qb4 {[%emt 0:00:17]} Qc7 {[%emt 0:00:28]} 33. Rc1 {[%emt 0:00:17]} a5 {[%emt 0:00:16]} 34. Qb1 {[%emt 0:00:55]} Qd6 {[%emt 0:00:19]} 35. Nd2 {[%emt 0:00:54]} Na4 {[%emt 0:01:04]} 36. Nc4 {[%emt 0:01:09]} Qd4 {[%emt 0:00:43]} 37. Qb3 {[%emt 0:00:31]} Nc5 {[%emt 0:00:46]} 38. Qxb6 {[%emt 0:00:13]} Rc8 {[%emt 0:00:19]} 39. Kg1 {[%emt 0:00:34]} Rd8 {[%emt 0:00:00]} 40. Nxa5 {[%emt 0:00:00]} 1-0

[Event "SRB-ch Semifinal 2022"]
[Site "Paracin"]
[Date "2022.03.19"]
[Round "4.1"]
[White "Zajic, Milan"]
[Black "Pap, Misa"]
[Result "0-1"]
[ECO "B32"]
[WhiteElo "2450"]
[BlackElo "2372"]
[Annotator "ChessBase"]
[PlyCount "62"]
[EventDate "2022.03.17"]
[EventType "swiss"]
[EventCountry "SRB"]
[SourceTitle "playchess.com"]
[Source "ChessBase"]
[SourceQuality "1"]
[TimeControl "40/5400+30:1800+30"]

1. e4 {[%emt 0:06:55]} c5 {[%emt 0:01:04]} 2. Nf3 {[%emt 0:00:13]} Nc6 {[%emt 0:00:08]} 3. d4 {[%emt 0:00:09]} cxd4 {[%emt 0:00:08]} 4. Nxd4 {[%emt 0:00:04]} e5 {[%emt 0:00:35]} 5. Nb5 {[%emt 0:00:07]} d6 {[%emt 0:00:05]} 6. N1c3 {[%emt 0:00:09]} a6 {[%emt 0:00:16]} 7. Na3 {[%emt 0:00:03]} b5 {[%emt 0:00:05]} 8. Nd5 {[%emt 0:00:06]} Nge7 {[%emt 0:10:08]} 9. Bd3 {[%emt 0:00:36]} Rb8 {[%emt 0:05:18]} 10. c4 {[%emt 0:01:07]} Nxd5 {[%emt 0:00:49]} 11. exd5 {[%emt 0:02:50]} Nd4 {[%emt 0:01:00]} 12. O-O {[%emt 0:01:40]} Be7 {[%emt 0:04:16]} 13. Be3 {[%emt 0:27:01]} bxc4 {[%emt 0:15:30]} 14. Nxc4 {[%emt 0:00:22]} O-O {[%emt 0:00:36]} 15. Bxd4 {[%emt 0:03:39]} exd4 {[%emt 0:00:20]} 16. Qf3 {[%emt 0:22:39]} a5 {[%emt 0:13:11]} 17. Qe4 {[%emt 0:04:18]} g6 {[%emt 0:00:28]} 18. Qxd4 {[%emt 0:00:31]} Ba6 {[%emt 0:00:33]} 19. Rab1 {[%emt 0:10:36]} Bf6 {[%emt 0:01:28]} 20. Qa7 {[%emt 0:00:21]} Bxc4 {[%emt 0:01:42]} 21. Bxc4 {[%emt 0:00:03]} Bxb2 {[%emt 0:05:06]} 22. Bb3 {[%emt 0:09:50]} Ba3 {[%emt 0:03:37]} 23. Ba4 {[%emt 0:01:19]} Rxb1 {[%emt 0:06:31]} 24. Rxb1 {[%emt 0:00:07]} Bc5 {[%emt 0:00:04]} 25. Qd7 {[%emt 0:02:49]} Qg5 {[%emt 0:09:07]} 26. Bb3 {[%emt 0:04:57]} Qd2 {[%emt 0:13:31]} 27. Rf1 {[%emt 0:00:18]} Rb8 {[%emt 0:00:09]} 28. g3 {[%emt 0:00:45]} Kg7 {[%emt 0:00:26]} 29. Qa4 {[%emt 0:00:40]} h5 {[%emt 0:00:55]} 30. h4 {[%emt 0:00:33]} Rb4 {[%emt 0:01:03]} 31. Qxa5 {[%emt 0:00:36]} Qc3 {[%emt 0:00:20]} 0-1

[Event "SRB-ch Semifinal 2022"]
[Site "Paracin"]
[Date "2022.03.19"]
[Round "4.3"]
[White "Milosevic, Milos"]
[Black "Radovanovic, Nikola"]
[Result "1/2-1/2"]
[ECO "B90"]
[WhiteElo "2296"]
[BlackElo "2413"]
[Annotator "ChessBase"]
[PlyCount "29"]
[EventDate "2022.03.17"]
[EventType "swiss"]
[EventCountry "SRB"]
[SourceTitle "playchess.com"]
[Source "ChessBase"]
[SourceQuality "1"]
[TimeControl "40/5400+30:1800+30"]

1. e4 {[%emt 0:00:02]} c5 {[%emt 0:02:04]} 2. Nf3 {[%emt 0:00:05]} d6 {[%emt 0:00:13]} 3. d4 {[%emt 0:00:09]} cxd4 {[%emt 0:00:09]} 4. Nxd4 {[%emt 0:00:02]} Nf6 {[%emt 0:00:11]} 5. Nc3 {[%emt 0:00:18]} a6 {[%emt 0:00:15]} 6. Be3 {[%emt 0:00:15]} e5 {[%emt 0:04:25]} 7. Nf3 {[%emt 0:00:28]} Qc7 {[%emt 0:03:00]} 8. a4 {[%emt 0:00:05]} Be6 {[%emt 0:06:43]} 9. a5 {[%emt 0:01:59]} Nbd7 {[%emt 0:01:38]} 10. Be2 {[%emt 0:00:44]} Be7 {[%emt 0:03:06]} 11. O-O {[%emt 0:00:18]} O-O {[%emt 0:05:34]} 12. Nd5 {[%emt 0:01:06]} Nxd5 {[%emt 0:01:11]} 13. exd5 {[%emt 0:00:09]} Bf5 {[%emt 0:00:34]} 14. c4 {[%emt 0:00:07]} Bg6 {[%emt 0:04:07]} 15. b4 {[%emt 0:03:37]} 1/2-1/2

[Event "SRB-ch Semifinal 2022"]
[Site "Paracin"]
[Date "2022.03.19"]
[Round "4.6"]
[White "Blagojevic, Tijana"]
[Black "Zivkovic, Nemanja"]
[Result "1/2-1/2"]
[ECO "B53"]
[WhiteElo "2260"]
[BlackElo "2380"]
[Annotator "NA"]
[PlyCount "117"]
[EventDate "2022.03.17"]
[EventType "swiss"]
[EventCountry "SRB"]
[SourceTitle "playchess.com"]
[Source "ChessBase"]
[SourceQuality "1"]
[TimeControl "40/5400+30:1800+30"]

1. e4 {[%emt 0:00:03]} c5 {[%emt 0:01:11]} 2. Nf3 {[%emt 0:00:06]} d6 {[%emt 0:00:05]} 3. d4 {[%emt 0:00:04]} cxd4 {[%emt 0:00:09]} 4. Qxd4 {[%emt 0:00:06]} a6 {[%emt 0:02:23]} 5. Be2 {[%emt 0:00:24]} Nf6 {[%emt 0:00:14]} 6. O-O {[%emt 0:00:55]} e6 {[%emt 0:08:54]} 7. c4 {[%emt 0:01:52]} Nbd7 {[%emt 0:00:05]} 8. Nc3 {[%emt 0:01:15]} Qc7 {[%emt 0:00:42]} 9. h3 {[%emt 0:04:55]} Be7 {[%emt 0:00:32]} 10. Rd1 {[%emt 0:00:43]} b6 {[%emt 0:01:15]} 11. b3 {[%emt 0:02:22]} Bb7 {[%emt 0:00:49]} 12. Ba3 {[%emt 0:02:27]} Nc5 {[%emt 0:01:39]} 13. Nd2 {[%emt 0:12:45]} O-O {[%emt 0:03:58]} 14. Bf3 {[%emt 0:02:14]} Rfd8 {[%emt 0:08:35]} 15. Bb2 {[%emt 0:03:43]} Rac8 {[%emt 0:01:46]} 16. Rac1 {[%emt 0:00:06]} Ne8 {[%emt 0:01:59]} 17. Nf1 {[%emt 0:03:24]} Bf6 {[%emt 0:07:11]} 18. Qe3 {[%emt 0:00:12]} Qb8 {[%emt 0:01:55]} 19. Ng3 {[%emt 0:02:11]} g6 {[%emt 0:01:45]} 20. b4 {[%emt 0:00:36]} Nd7 {[%emt 0:01:03]} 21. Na4 {[%emt 0:00:49]} Bxb2 {[%emt 0:20:44]} 22. Nxb2 {[%emt 0:00:05]} b5 {[%emt 0:01:10]} 23. Be2 {[%emt 0:08:31]} Bc6 $11 {[%emt 0:02:13]} 24. a3 {[%emt 0:04:21]} Qb6 {[%emt 0:15:38]} 25. Qg5 {[%emt 0:11:25]} Qb7 {[%emt 0:03:13]} 26. f3 {[%emt 0:12:17]} Ndf6 {[%emt 0:01:00]} 27. Kh2 {[%emt 0:01:08]} Kg7 {[%emt 0:01:07]} 28. e5 {[%emt 0:05:41]} dxe5 {[%emt 0:00:02]} 29. Qxe5 {[%emt 0:00:29]} bxc4 {[%emt 0:03:19]} 30. Nxc4 {[%emt 0:00:47]} Bb5 {[%emt 0:01:24]} 31. Na5 {[%emt 0:05:34]} Qb6 {[%emt 0:00:52]} 32. Bxb5 {[%emt 0:03:07]} axb5 {[%emt 0:00:21]} 33. Ne4 {[%emt 0:01:02]} Rxc1 {[%emt 0:02:18]} 34. Rxc1 {[%emt 0:00:18]} Rd5 {[%emt 0:00:17]} 35. Qc3 {[%emt 0:00:44]} Qb8+ {[%emt 0:02:15]} 36. Kh1 {[%emt 0:00:36]} Qf4 {[%emt 0:00:38]} 37. Nb3 {[%emt 0:01:34]} Nd6 {[%emt 0:03:05]} 38. Nbc5 {[%emt 0:01:29]} Ndxe4 {[%emt 0:01:22]} 39. Nxe4 {[%emt 0:00:27]} e5 {[%emt 0:00:47]} 40. Nxf6 {[%emt 0:00:44]} Qxf6 {[%emt 0:00:03]} 41. Qe3 {[%emt 0:32:48]} Qd6 {[%emt 0:06:47]} 42. Rc5 {[%emt 0:00:00]} h5 {[%emt 0:10:29]} 43. Qc3 {[%emt 0:00:00]} h4 {[%emt 0:09:07]} 44. f4 {[%emt 0:00:00]} f6 {[%emt 0:01:58]} 45. Rc6 {[%emt 0:00:00]} Rd1+ {[%emt 0:02:18]} 46. Kh2 {[%emt 0:00:00]} Qd5 {[%emt 0:01:11]} 47. Qc5 {[%emt 0:00:00]} Qxc5 {[%emt 0:02:10]} 48. Rxc5 {[%emt 0:00:00]} Rd3 {[%emt 0:00:45]} 49. fxe5 {[%emt 0:00:00]} fxe5 {[%emt 0:00:04]} 50. Rxe5 {[%emt 0:00:00]} Rxa3 {[%emt 0:00:03]} 51. Rxb5 {[%emt 0:00:00]} Rb3 {[%emt 0:00:10]} 52. Rb8 {[%emt 0:00:00]} Rb1 {[%emt 0:00:07]} 53. b5 {[%emt 0:00:00]} Kh6 {[%emt 0:00:05]} 54. b6 {[%emt 0:00:00]} Kg5 {[%emt 0:00:03]} 55. b7 {[%emt 0:02:25]} Rb4 {[%emt 0:00:07]} 56. Kg1 {[%emt 0:00:06]} Rb2 {[%emt 0:00:02]} 57. Kf1 {[%emt 0:00:24]} Rb1+ {[%emt 0:00:03]} 58. Ke2 {[%emt 0:00:42]} Rb2+ {[%emt 0:00:01]} 59. Kf3 {[%emt 0:00:23]} 1/2-1/2

[Event "SRB-ch Semifinal 2022"]
[Site "Paracin"]
[Date "2022.03.19"]
[Round "4.8"]
[White "Gajcin, Marina"]
[Black "Todorovic, Nenad I"]
[Result "1/2-1/2"]
[ECO "B98"]
[WhiteElo "2254"]
[BlackElo "2311"]
[Annotator "NA"]
[PlyCount "64"]
[EventDate "2022.03.17"]
[EventType "swiss"]
[EventCountry "SRB"]
[SourceTitle "playchess.com"]
[Source "ChessBase"]
[SourceQuality "1"]
[TimeControl "40/5400+30:1800+30"]

1. e4 {[%emt 0:00:06]} c5 {[%emt 0:01:30]} 2. Nf3 {[%emt 0:00:06]} d6 {[%emt 0:00:05]} 3. d4 {[%emt 0:00:23]} cxd4 {[%emt 0:00:07]} 4. Nxd4 {[%emt 0:00:05]} Nf6 {[%emt 0:00:04]} 5. Nc3 $14 {[%emt 0:00:11]} a6 {[%emt 0:00:04]} 6. Bg5 {[%emt 0:00:14]} e6 {[%emt 0:00:07]} 7. f4 {[%emt 0:00:28]} h6 {[%emt 0:00:08]} 8. Bh4 {[%emt 0:00:14]} Be7 {[%emt 0:00:14]} 9. Qf3 {[%emt 0:00:25]} Nc6 {[%emt 0:00:25]} 10. O-O-O {[%emt 0:08:10]} Nxd4 {[%emt 0:00:30]} 11. Rxd4 {[%emt 0:00:06]} Qb6 {[%emt 0:00:06]} 12. Rd1 {[%emt 0:04:53]} Qc5 {[%emt 0:00:58]} 13. Bf2 {[%emt 0:13:29]} Qa5 {[%emt 0:01:21]} 14. Kb1 {[%emt 0:06:44]} Bd7 {[%emt 0:07:07]} 15. Bd3 {[%emt 0:12:27]} Bc6 {[%emt 0:00:40]} 16. Qh3 {[%emt 0:06:18]} b5 {[%emt 0:36:37]} 17. e5 {[%emt 0:19:48]} dxe5 {[%emt 0:03:05]} 18. fxe5 {[%emt 0:00:15]} Nd5 {[%emt 0:00:39]} 19. Nxd5 {[%emt 0:01:07]} Bxd5 {[%emt 0:05:33]} 20. b3 {[%emt 0:00:30]} Bb4 {[%emt 0:01:14]} 21. Bd4 {[%emt 0:05:33]} Rc8 {[%emt 0:02:29]} 22. Rhf1 {[%emt 0:02:41]} Bc3 {[%emt 0:03:35]} 23. Bxc3 {[%emt 0:02:59]} Qxc3 {[%emt 0:35:22]} 24. Qh5 {[%emt 0:01:34]} O-O {[%emt 0:00:00]} 25. Rf4 {[%emt 0:07:12]} a5 {[%emt 0:00:00]} 26. Rg4 {[%emt 0:01:10]} f5 {[%emt 0:00:00]} 27. exf6 {[%emt 0:03:07]} Rxf6 {[%emt 0:00:00]} 28. Rg3 {[%emt 0:01:03]} Qc5 {[%emt 0:00:00]} 29. Qg4 {[%emt 0:00:45]} Rc7 {[%emt 0:00:00]} 30. Qh5 {[%emt 0:01:11]} Rc8 {[%emt 0:00:00]} 31. Qg4 {[%emt 0:00:05]} Rc7 {[%emt 0:00:00]} 32. Qh5 {[%emt 0:00:05]} Rc8 {[%emt 0:04:30]} 1/2-1/2

[Event "SRB-ch Semifinal 2022"]
[Site "Paracin"]
[Date "2022.03.19"]
[Round "4.9"]
[White "Djokic, Mihailo"]
[Black "Ivanovic, Marko"]
[Result "1/2-1/2"]
[ECO "B12"]
[WhiteElo "2279"]
[BlackElo "2302"]
[Annotator "NA"]
[PlyCount "83"]
[EventDate "2022.03.17"]
[EventType "swiss"]
[EventCountry "SRB"]
[SourceTitle "playchess.com"]
[Source "ChessBase"]
[SourceQuality "1"]
[TimeControl "40/5400+30:1800+30"]

1. e4 {[%emt 0:00:02]} c6 {[%emt 0:03:56]} 2. d4 {[%emt 0:01:12]} d5 {[%emt 0:00:10]} 3. e5 {[%emt 0:00:15]} c5 {[%emt 0:00:18]} 4. dxc5 {[%emt 0:00:05]} e6 {[%emt 0:00:06]} 5. Bd3 {[%emt 0:00:15]} Bxc5 {[%emt 0:00:11]} 6. Nf3 {[%emt 0:00:07]} Nc6 {[%emt 0:02:23]} 7. O-O {[%emt 0:00:56]} f6 {[%emt 0:00:10]} 8. Qe2 {[%emt 0:05:40]} fxe5 {[%emt 0:00:26]} 9. Nxe5 {[%emt 0:00:08]} Nxe5 {[%emt 0:00:04]} 10. Qxe5 {[%emt 0:00:04]} Nf6 {[%emt 0:00:07]} 11. Nd2 {[%emt 0:14:57]} O-O {[%emt 0:00:31]} 12. Nf3 {[%emt 0:01:04]} Qb6 {[%emt 0:39:04]} 13. Be3 {[%emt 0:12:45]} Bxe3 {[%emt 0:08:34]} 14. fxe3 {[%emt 0:00:45]} Bd7 {[%emt 0:05:41]} 15. Qd4 {[%emt 0:01:01]} Qc7 {[%emt 0:17:30]} 16. Ne5 {[%emt 0:03:23]} a6 {[%emt 0:00:19]} 17. a4 {[%emt 0:05:24]} Bc6 {[%emt 0:05:40]} 18. Rf3 {[%emt 0:07:43]} Nd7 {[%emt 0:07:24]} 19. Nxd7 {[%emt 0:22:41]} Rxf3 {[%emt 0:00:05]} 20. gxf3 {[%emt 0:04:08]} Qxd7 {[%emt 0:00:08]} 21. b3 {[%emt 0:02:10]} Qd6 {[%emt 0:07:24]} 22. f4 {[%emt 0:00:43]} Re8 {[%emt 0:00:20]} 23. Rf1 {[%emt 0:05:37]} e5 {[%emt 0:00:17]} 24. fxe5 {[%emt 0:00:06]} Rxe5 {[%emt 0:01:03]} 25. Rf2 {[%emt 0:01:43]} Qe7 {[%emt 0:00:15]} 26. Rf3 {[%emt 0:03:02]} h5 {[%emt 0:00:14]} 27. h4 {[%emt 0:01:46]} Bd7 {[%emt 0:00:16]} 28. Qa7 {[%emt 0:00:56]} Bg4 {[%emt 0:01:20]} 29. Rf2 {[%emt 0:03:24]} Qe8 {[%emt 0:00:33]} 30. Qxb7 {[%emt 0:00:17]} Rxe3 {[%emt 0:00:21]} 31. Qxd5+ {[%emt 0:00:09]} Be6 {[%emt 0:00:03]} 32. Qg5 {[%emt 0:00:44]} Bxb3 {[%emt 0:00:30]} 33. Bg6 {[%emt 0:00:58]} Re1+ {[%emt 0:00:04]} 34. Rf1 {[%emt 0:01:08]} Rxf1+ {[%emt 0:00:09]} 35. Kxf1 {[%emt 0:00:01]} Bf7 {[%emt 0:00:05]} 36. Qd5 {[%emt 0:00:47]} Bxd5 {[%emt 0:02:02]} 37. Bxe8 {[%emt 0:00:06]} a5 {[%emt 0:00:34]} 38. c3 {[%emt 0:00:34]} Kf8 {[%emt 0:00:31]} 39. Bxh5 {[%emt 0:00:07]} Bb3 {[%emt 0:00:03]} 40. Ke2 {[%emt 0:00:34]} Bxa4 {[%emt 0:00:04]} 41. Kd3 {[%emt 0:30:33]} Ke7 {[%emt 0:30:12]} 42. Ke4 {[%emt 0:03:30]} 1/2-1/2

[Event "SRB-ch Semifinal 2022"]
[Site "Paracin"]
[Date "2022.03.19"]
[Round "4.10"]
[White "Mijatovic, Dusan"]
[Black "Kojovic, Dragan"]
[Result "1/2-1/2"]
[ECO "B11"]
[WhiteElo "2165"]
[BlackElo "2298"]
[Annotator "NA"]
[PlyCount "80"]
[EventDate "2022.03.17"]
[EventType "swiss"]
[EventCountry "SRB"]
[SourceTitle "playchess.com"]
[Source "ChessBase"]
[SourceQuality "1"]
[TimeControl "40/5400+30:1800+30"]

1. e4 {[%emt 0:00:04]} c6 {[%emt 0:00:18]} 2. Nf3 {[%emt 0:00:27]} d5 {[%emt 0:00:10]} 3. Nc3 {[%emt 0:00:21]} dxe4 {[%emt 0:01:06]} 4. Nxe4 {[%emt 0:00:02]} Nf6 {[%emt 0:00:09]} 5. Qe2 {[%emt 0:00:10]} Nxe4 {[%emt 0:02:15]} 6. Qxe4 {[%emt 0:00:21]} Qa5 {[%emt 0:00:10]} 7. Qf4 {[%emt 0:01:43]} Qf5 {[%emt 1:29:52]} 8. Qe3 {[%emt 1:31:22]} Qe6 {[%emt 0:00:30]} 9. b3 {[%emt 0:00:00]} Qxe3+ {[%emt 0:00:00]} 10. fxe3 {[%emt 0:00:00]} Bf5 {[%emt 0:00:00]} 11. Bb2 {[%emt 0:00:00]} e6 {[%emt 0:00:00]} 12. O-O-O {[%emt 0:02:00]} a5 {[%emt 0:02:00]} 13. a3 {[%emt 0:00:00]} Nd7 {[%emt 0:00:30]} 14. Be2 {[%emt 0:00:00]} h6 {[%emt 0:00:00]} 15. Rhf1 {[%emt 0:00:00]} Be7 {[%emt 0:00:00]} 16. d4 {[%emt 0:02:00]} O-O {[%emt 0:00:00]} 17. Rfe1 {[%emt 0:00:00]} Rfc8 {[%emt 0:02:00]} 18. Bf1 {[%emt 0:00:00]} Nf6 {[%emt 0:00:00]} 19. Nd2 {[%emt 0:00:00]} c5 {[%emt 0:00:00]} 20. e4 {[%emt 0:02:00]} Bg4 {[%emt 0:00:00]} 21. Be2 {[%emt 0:00:00]} cxd4 {[%emt 0:00:00]} 22. Nc4 {[%emt 0:00:00]} Ra6 {[%emt 0:00:00]} 23. Rxd4 {[%emt 0:00:00]} Bc5 {[%emt 0:00:00]} 24. Rdd1 {[%emt 0:00:00]} Bxe2 {[%emt 0:00:00]} 25. Rxe2 {[%emt 0:00:00]} a4 {[%emt 0:04:00]} 26. Rd3 {[%emt 0:03:00]} axb3 {[%emt 0:00:00]} 27. Rxb3 {[%emt 0:00:30]} Bg1 {[%emt 0:01:00]} 28. Ne5 {[%emt 0:00:00]} Bxh2 {[%emt 0:00:30]} 29. Rxb7 {[%emt 0:00:00]} Bf4+ {[%emt 0:00:00]} 30. Kb1 {[%emt 0:00:00]} Bxe5 {[%emt 0:00:00]} 31. Bxe5 {[%emt 0:02:00]} Rxa3 {[%emt 0:01:30]} 32. Bxf6 {[%emt 0:00:00]} gxf6 {[%emt 0:00:00]} 33. Rf2 {[%emt 0:01:00]} Kg7 {[%emt 0:01:00]} 34. e5 {[%emt 0:00:30]} f5 {[%emt 0:00:30]} 35. g4 {[%emt 0:00:30]} fxg4 {[%emt 0:00:00]} 36. Rfxf7+ {[%emt 0:00:30]} Kg6 {[%emt 0:00:00]} 37. Rf6+ {[%emt 0:00:00]} Kg5 {[%emt 0:00:00]} 38. Rg7+ {[%emt 0:00:00]} Kh4 {[%emt 0:02:00]} 39. Rxh6+ {[%emt 0:00:01]} Kg3 {[%emt 0:00:30]} 40. Rxe6 {[%emt 0:01:59]} Re3 {[%emt 0:00:30]} 1/2-1/2